fUST/lending_fUST_20240903
["ID","MTS","AMOUNT","RATE_DAILY","PERIOD"]
[337035687,1725359439205,-500.0,0.00024959,2]
[337035688,1725359439214,-204.19097672,0.00024959,2]
[337035689,1725359439223,-500.0,0.00024959,2]
[337035690,1725359439233,-500.0,0.00024959,2]
[337035691,1725359439242,-500.0,0.00024959,2]
[337035692,1725359439251,-500.0,0.00024959,2]
[337035693,1725359439272,-250.0,0.00024959,2]
[337035694,1725359439281,-500.0,0.00024959,2]
[337035695,1725359439290,-389.88357099,0.00024959,2]
[337035696,1725359439299,-501.52188027,0.00024959,2]
[337035697,1725359439309,-500.0,0.00024959,2]
[337035698,1725359439318,-500.0,0.00024959,2]
[337035699,1725359439327,-525.68921748,0.00024959,2]
[337035700,1725359439337,-619.75269054,0.00024959,2]
[337035701,1725359439348,-621.88923946,0.00024959,2]
[337035702,1725359439359,-199267.9006929,0.0002496,3]
[337035722,1725359440650,-425983.1779931,0.0002496,3]
[337035724,1725359440660,-500.0,0.00024973,2]
[337035726,1725359440670,-500.0,0.00024973,2]
[337035728,1725359440680,-161.07763022,0.00024973,2]
[337035730,1725359440690,-200.11197143,0.00024973,2]
[337035732,1725359440700,-178.12258839,0.00024973,2]
[337035734,1725359440710,-158.58904711,0.00024973,2]
[337035736,1725359440719,-167.18037718,0.00024973,2]
[337035738,1725359440729,-170.50618581,0.00024973,2]
[337035740,1725359440740,-153.96298892,0.00024979,2]
[337035743,1725359440750,-4944.78566775,0.00024979,2]
[337035745,1725359440763,-161.11827143,0.00024989,2]
[337035747,1725359440772,-7829.43843812,0.00024998,2]
[337035749,1725359440782,-37425.00846084,0.00025,15]
[337035751,1725359440794,-310.2158601,0.00025,60]
[337035753,1725359440804,-37052.73169132,0.00025,2]
[337035755,1725359440814,-255.73,0.00025,14]
[337035757,1725359440824,-300.0,0.00025,30]
[337035759,1725359440834,-8984.39016386,0.00025,2]
[337035761,1725359440845,-586.12,0.00025,14]
[337035763,1725359440857,-151.0,0.00025,7]
[337035765,1725359440866,-90858.71055957,0.00025,2]
[337035767,1725359440877,-181.182763,0.00025,7]
[337035769,1725359440889,-153.500725,0.00025,7]
[337035771,1725359440899,-151.0,0.00025,7]
[337035773,1725359440908,-151.0,0.00025,7]
[337035776,1725359440919,-210.097767,0.00025,7]
[337035778,1725359440930,-158.59078542,0.00025073,2]
[337035780,1725359440939,-500.0,0.00025073,2]
[337035782,1725359440950,-107910.46280449,0.0002509,2]
[337035784,1725359440960,-277.041058,0.0002509,7]
[337035786,1725359440970,-15523.23043377,0.0002509,2]
[337036222,1725359446630,-712.5167953,0.00024951,3]
[337036223,1725359446641,-852.85919551,0.00024951,3]
[337036224,1725359446653,-626.83839899,0.00024951,3]
[337036234,1725360415159,-734.52161606,0.00023,14]
[337036253,1725360631694,-3265.47838394,0.00023,14]
[337036254,1725360631703,-6567.88494606,0.00023581,2]
[337036255,1725360631716,-93.29914144,0.00023581,2]
[337036256,1725360631727,-300.0,0.00023818,2]
[337036257,1725360631738,-275.1273999,0.00023819,2]
[337036258,1725360631750,-187.5,0.00023998,2]
[337036259,1725360631762,-208.0368303,0.00025,2]
[337036260,1725360631772,-208.0368303,0.00025,2]
[337036261,1725360631782,-306.0,0.00025,2]
[337036262,1725360631794,-153.0,0.00025,2]
[337036263,1725360631804,-153.0,0.00025,2]
[337036264,1725360631815,-208.0368303,0.00025,2]
[337036265,1725360631826,-208.0368303,0.00025,2]
[337036266,1725360631836,-28817.93859122,0.0002509,2]
[337036278,1725360637838,-1855.57374104,0.0002509,2]
[337036279,1725360637852,-2923.03702892,0.0002509,2]
[337036280,1725360637863,-153.0,0.000251,2]
[337036281,1725360637874,-153.0,0.000251,2]
[337036282,1725360637884,-153.0,0.000251,2]
[337036283,1725360637894,-153.0,0.000251,2]
[337036284,1725360637903,-153.0,0.000251,2]
[337036285,1725360637915,-153.0,0.000251,2]
[337036286,1725360637924,-153.0,0.000251,2]
[337036287,1725360637934,-153.0,0.000251,2]
[337036288,1725360637944,-153.0,0.000251,2]
[337036290,1725360637953,-153.0,0.000251,2]
[337036291,1725360637962,-153.0,0.000251,2]
[337036292,1725360637972,-153.0,0.000251,2]
[337036293,1725360637983,-153.0,0.000251,2]
[337036294,1725360637994,-153.0,0.000251,2]
[337036295,1725360638004,-208.0368303,0.000251,2]
[337036296,1725360638014,-153.0,0.00025205,2]
[337036297,1725360638024,-153.0,0.00025205,2]
[337036298,1725360638034,-153.0,0.00025205,2]
[337036299,1725360638043,-153.0,0.00025205,2]
[337036300,1725360638053,-153.0,0.00025205,2]
[337036301,1725360638067,-153.0,0.000253,2]
[337036302,1725360638077,-208.0368303,0.00025397,2]
[337036303,1725360638087,-208.0368303,0.00025397,2]
[337036304,1725360638096,-208.0368303,0.00025397,2]
[337036305,1725360638107,-208.0368303,0.00025397,2]
[337036306,1725360638116,-608.0,0.000255,2]
[337036307,1725360638126,-208.0368303,0.0002589,2]
[337036308,1725360638137,-1000.5,0.00026,31]
[337036309,1725360638148,-1013.7,0.00026,31]
[337036310,1725360638157,-300.0,0.000262,2]
[337036311,1725360638168,-297.96356225,0.00026481,2]
[337036372,1725360642886,-81.61351289,0.00026481,2]
[337036438,1725361831969,-150.0,0.00024,2]
[337036440,1725361831979,-157.0,0.00024932,2]
[337036442,1725361831989,-157.0,0.00025,2]
[337036444,1725361831998,-460.8182472,0.00025128,2]
[337036446,1725361832009,-1399.8563902,0.00025128,2]
[337036448,1725361832018,-208.0368303,0.000255,2]
[337036450,1725361832028,-157.0,0.0002589,2]
[337036452,1725361832037,-1008.23546971,0.00026394,2]
[337036454,1725361832047,-150.01,0.0002648,2]
[337036456,1725361832056,-300.0,0.00026846,2]
[337036458,1725361832066,-24395.49636379,0.00026847,2]
[337036460,1725361832075,-2909.11607056,0.000269,2]
[337036462,1725361832085,-10547.52045924,0.00027,3]
[337036465,1725361832097,-3932.04667786,0.00027,3]
[337036532,1725361837967,-10665.38,0.0002699,3]
[337036534,1725361837977,-28231.61360867,0.00027,3]
[337036536,1725361837988,-42122.76,0.00027,4]
[337036538,1725361837999,-1000.0,0.00027057,2]
[337036540,1725361838011,-154.98,0.00027125,2]
[337036541,1725361838022,-154.98,0.00027125,2]
[337036542,1725361838033,-154.98,0.00027125,2]
[337036543,1725361838043,-154.98,0.00027125,2]
[337036544,1725361838053,-154.98,0.00027125,2]
[337036545,1725361838064,-154.98,0.00027125,2]
[337036546,1725361838074,-154.98,0.00027125,2]
[337036547,1725361838083,-154.98,0.00027125,2]
[337036548,1725361838094,-154.98,0.00027125,2]
[337036549,1725361838104,-239.31665186,0.00027125,2]
[337036550,1725361838114,-500.0,0.00027125,2]
[337036551,1725361838124,-500.0,0.00027125,2]
[337036552,1725361838133,-500.0,0.00027125,2]
[337036553,1725361838143,-500.0,0.00027125,2]
[337036554,1725361838153,-500.0,0.00027125,2]
[337036556,1725361838163,-346.07489207,0.00027125,2]
[337036557,1725361838173,-500.0,0.00027125,2]
[337036558,1725361838183,-500.0,0.00027125,2]
[337036559,1725361838193,-500.0,0.00027125,2]
[337036560,1725361838202,-500.0,0.00027125,2]
[337036561,1725361838212,-500.0,0.00027125,2]
[337036562,1725361838221,-500.0,0.00027125,2]
[337036563,1725361838232,-500.0,0.00027125,2]
[337036564,1725361838241,-500.0,0.00027125,2]
[337036565,1725361838251,-219.94372723,0.00027125,2]
[337036566,1725361838262,-1481.5020846,0.00027126,3]
[337036567,1725361838276,-1700.54621309,0.00027126,3]
[337036582,1725361840182,-6162.22719389,0.00027126,3]
[337036597,1725361846145,-734.3,0.00027116,3]
[337036598,1725361846159,-8153.51,0.00027116,3]
[337036599,1725361846170,-171226.97616588,0.00027126,3]
[337036623,1725362913136,17430.54063221,0.00019,2]
[337036624,1725362923232,23308.33281175,0.0002,2]
[337036625,1725362924270,154.87643969,0.0002,2]
[337036629,1725362951158,-564.17588946,0.00020377,2]
[337036777,1725363040403,-1000.0,0.00025,7]
[337036778,1725363040413,-1000.16,0.00025,7]
[337036780,1725363040422,-157.0,0.00025,2]
[337036781,1725363040432,-300.0,0.00025089,2]
[337036783,1725363040443,-5644.65396034,0.0002509,2]
[337036785,1725363040455,-9681.576,0.0002509,2]
[337036807,1725363043345,-197.00047343,0.0002509,2]
[337036808,1725363043355,-189.29383,0.00025603,2]
[337036809,1725363043366,-157.0,0.0002589,2]
[337036810,1725363043375,-578.98021553,0.0002703,2]
[337036825,1725363894012,3387.48,0.0002,2]
[337036914,1725364238561,-101.35772222,0.00025,2]
[337036917,1725364238573,-56.64227778,0.00025,2]
[337036918,1725364238582,-4430.7101271,0.00025818,2]
[337036919,1725364238591,-158.0,0.0002589,2]
[337036920,1725364238600,-300.0,0.00026599,2]
[337036921,1725364238610,-300.0,0.00026599,2]
[337036922,1725364238619,-37.02326283,0.000266,2]
[337036923,1725364238631,-115.97673717,0.000266,2]
[337036924,1725364238641,-153.0,0.000266,2]
[337036925,1725364238650,-153.0,0.000266,2]
[337036926,1725364238661,-153.0,0.000266,2]
[337036927,1725364238671,-153.0,0.000266,2]
[337036928,1725364238680,-153.0,0.000266,2]
[337036929,1725364238691,-153.0,0.000266,2]
[337036930,1725364238701,-153.0,0.000266,2]
[337036931,1725364238715,-153.0,0.000266,2]
[337036932,1725364238726,-153.0,0.000266,2]
[337036933,1725364238736,-153.0,0.000266,2]
[337036934,1725364238746,-153.0,0.00026652,2]
[337036935,1725364238759,-329.53036957,0.00027,2]
[337036936,1725364238769,-153.0,0.00027041,2]
[337036937,1725364238778,-153.0,0.00027041,2]
[337036938,1725364238788,-153.0,0.00027041,2]
[337036939,1725364238798,-2573.14376987,0.0002707,2]
[337036940,1725364238807,-3000.0,0.000271,2]
[337036941,1725364238817,-3000.0,0.0002711,2]
[337036942,1725364238829,-621.75557779,0.0002711,2]
[337036943,1725364238839,-3000.0,0.0002712,2]
[337036944,1725364238848,-3000.0,0.0002713,2]
[337036945,1725364238857,-3000.0,0.0002714,2]
[337036946,1725364238867,-621.75557779,0.0002714,2]
[337036947,1725364238876,-3000.0,0.0002715,2]
[337036948,1725364238886,-3000.0,0.0002716,2]
[337036949,1725364238895,-3000.0,0.0002717,2]
[337036950,1725364238905,-621.75557779,0.00027171,2]
[337036951,1725364238914,-3000.0,0.0002718,2]
[337036952,1725364238924,-3000.0,0.0002719,2]
[337036953,1725364238934,-2002.0,0.000272,2]
[337036954,1725364238944,-3000.0,0.000272,2]
[337036955,1725364238953,-621.75557779,0.00027201,2]
[337036956,1725364238962,-3000.0,0.0002721,2]
[337036957,1725364238972,-1000.0,0.0002722,2]
[337036958,1725364238985,-3000.0,0.0002722,2]
[337036959,1725364238994,-3000.0,0.0002723,2]
[337036960,1725364239005,-1242.15864381,0.00027231,2]
[337036961,1725364239015,-621.75557779,0.00027231,2]
[337036962,1725364239024,-3000.0,0.0002724,2]
[337036963,1725364239040,-3000.0,0.0002725,2]
[337036964,1725364239056,-3000.0,0.0002726,2]
[337036965,1725364239071,-3000.0,0.0002727,2]
[337036966,1725364239084,-3000.0,0.0002728,2]
[337036967,1725364239100,-3000.0,0.0002729,2]
[337036968,1725364239116,-151.0,0.000273,7]
[337036969,1725364239132,-151.0,0.000273,7]
[337036970,1725364239148,-277.041058,0.000273,7]
[337036971,1725364239162,-156.123311,0.000273,7]
[337036972,1725364239176,-3000.0,0.000273,2]
[337036973,1725364239191,-151.0,0.000273,7]
[337036974,1725364239205,-285.123233,0.000273,7]
[337036975,1725364239218,-285.123233,0.000273,7]
[337036976,1725364239232,-151.0,0.000273,7]
[337036977,1725364239246,-151.0,0.000273,7]
[337036978,1725364239263,-152.812093,0.000273,7]
[337036979,1725364239277,-151.0,0.000273,7]
[337036980,1725364239292,-209.11715,0.000273,7]
[337036981,1725364239307,-151.0,0.000273,7]
[337036982,1725364239318,-151.0,0.000273,7]
[337036983,1725364239329,-4370.26,0.000273,3]
[337036984,1725364239344,-8333.79,0.000273,3]
[337036985,1725364239360,-519.14013221,0.00027309,2]
[337036986,1725364239372,-152.419011,0.0002731,7]
[337036987,1725364239388,-3000.0,0.0002731,2]
[337036988,1725364239404,-152.388725,0.0002731,7]
[337036989,1725364239416,-46708.9670376,0.0002731,3]
[337036990,1725364239427,-151.0,0.0002731,7]
[337036991,1725364239440,-151.0,0.0002731,7]
[337036992,1725364239453,-151.0,0.0002731,7]
[337036993,1725364239466,-256.555884,0.0002731,7]
[337036994,1725364239480,-256.555884,0.0002731,7]
[337036995,1725364239494,-156.827101,0.0002731,7]
[337036996,1725364239507,-151.0,0.0002731,7]
[337036997,1725364239521,-151.0,0.0002731,7]
[337036998,1725364239535,-151.0,0.0002731,7]
[337036999,1725364239549,-151.0,0.0002731,7]
[337037000,1725364239561,-151.0,0.00027319,7]
[337037001,1725364239575,-151.0,0.00027319,7]
[337037002,1725364239587,-151.0,0.00027319,7]
[337037003,1725364239600,-151.42381,0.00027319,7]
[337037004,1725364239613,-245.66018725,0.0002732,2]
[337037005,1725364239625,-500.0,0.0002732,2]
[337037006,1725364239638,-292.25242445,0.0002732,2]
[337037007,1725364239650,-500.0,0.0002732,2]
[337037008,1725364239663,-500.0,0.0002732,2]
[337037009,1725364239676,-500.0,0.0002732,2]
[337037010,1725364239688,-500.0,0.0002732,2]
[337037011,1725364239700,-500.0,0.0002732,2]
[337037012,1725364239713,-500.0,0.0002732,2]
[337037013,1725364239725,-500.0,0.0002732,2]
[337037014,1725364239737,-375.86040518,0.0002732,2]
[337037015,1725364239750,-500.0,0.0002732,2]
[337037016,1725364239764,-500.0,0.0002732,2]
[337037017,1725364239776,-300.0,0.0002732,2]
[337037018,1725364239789,-151.0,0.0002732,7]
[337037019,1725364239801,-151.0,0.0002732,7]
[337037020,1725364239814,-151.0,0.0002732,7]
[337037021,1725364239828,-3000.0,0.0002732,2]
[337037022,1725364239837,-151.0,0.0002732,7]
[337037023,1725364239946,-285.123233,0.0002732,7]
[337037025,1725364239960,-285.123233,0.0002732,7]
[337037026,1725364239969,-272.180285,0.0002732,7]
[337037027,1725364239986,-151.0,0.0002732,7]
[337037028,1725364240000,-111568.48196772,0.00027321,3]
[337037034,1725364243480,-35.8466668,0.0002729,7]
[337037056,1725365432513,-1117.94277942,0.000249,2]
[337037058,1725365432522,-2450.22745576,0.000249,2]
[337037059,1725365432531,-159.89909606,0.00024973,2]
[337037060,1725365432541,-500.0,0.00024973,2]
[337037061,1725365432550,-500.0,0.00024973,2]
[337037062,1725365432635,-1011.75091352,0.0002498,3]
[337037063,1725365432648,-6365.27908648,0.0002498,3]
[337037064,1725365432658,-6434.66929996,0.0002499,3]
[337037147,1725365851098,-205016.7819088,0.00025,15]
[337037156,1725366520356,335.01485012,0.0001,7]
[337037165,1725366632543,-300.0,0.0002495,2]
[337037166,1725366632554,-147.11,0.00024951,3]
[337037214,1725366638683,-3224.29,0.00024951,3]
[337037215,1725366638694,-5885.77,0.00024951,3]
[337037216,1725366638704,-500.0,0.00024959,2]
[337037217,1725366638713,-245.52617566,0.00024959,2]
[337037218,1725366638723,-500.0,0.00024959,2]
[337037219,1725366638734,-404.57669712,0.00024959,2]
[337037220,1725366638745,-500.0,0.00024959,2]
[337037221,1725366638757,-500.0,0.00024959,2]
[337037222,1725366638767,-500.0,0.00024959,2]
[337037223,1725366638777,-410.60642826,0.00024959,2]
[337037224,1725366638786,-500.0,0.00024959,2]
[337037225,1725366638796,-500.0,0.00024959,2]
[337037226,1725366638805,-500.0,0.00024959,2]
[337037227,1725366638814,-533.11704068,0.00024959,2]
[337037228,1725366638824,-500.0,0.00024959,2]
[337037230,1725366638834,-240.32246762,0.00024959,2]
[337037231,1725366638844,-619.75269054,0.00024959,2]
[337037232,1725366638853,-500.0,0.00024959,2]
[337037233,1725366638862,-257.70676524,0.00024959,2]
[337037234,1725366638871,-501.52188027,0.00024959,2]
[337037235,1725366638881,-500.0,0.00024959,2]
[337037236,1725366638892,-389.88357099,0.00024959,2]
[337037237,1725366638904,-486.56677184,0.00024959,2]
[337037238,1725366638916,-500.0,0.00024959,2]
[337037239,1725366638926,-611.25729302,0.00024959,2]
[337037240,1725366638937,-375.0,0.00024959,2]
[337037241,1725366638948,-2763.25702664,0.0002496,3]
[337037257,1725366643710,-818.57,0.0002496,3]
[337037266,1725367619988,2502.04671744,0.00023,15]
[337037268,1725367745192,-165.748795,0.00023906,2]
[337037269,1725367745214,-169.0,0.00023918,2]
[337037270,1725367745236,-3961.61172484,0.00023928,2]
[337037280,1725367831732,-1184.9,0.00023928,2]
[337037282,1725367831746,-12106.63596261,0.00023928,2]
[337037366,1725367840036,-7646.85231255,0.00023928,2]
[337037367,1725367840046,-302.21432435,0.00024835,6]
[337037368,1725367840057,-10206.00102114,0.00024888,2]
[337037369,1725367840066,-161.11827143,0.00024959,2]
[337037370,1725367840075,-200.0,0.0002496,3]
[337037371,1725367840084,-324.84,0.0002497,3]
[337037372,1725367840093,-500.93088685,0.00024973,2]
[337037373,1725367840103,-197.0,0.00024973,2]
[337037374,1725367840113,-4904.81,0.0002498,3]
[337037375,1725367840123,-151.0,0.00024989,7]
[337037376,1725367840134,-151.00000054,0.00024989,7]
[337037377,1725367840145,-151.0,0.00024989,7]
[337037378,1725367840154,-151.0,0.00024989,7]
[337037379,1725367840164,-500.0,0.00024989,2]
[337037380,1725367840174,-500.0,0.00024989,2]
[337037381,1725367840183,-500.0,0.00024989,2]
[337037382,1725367840192,-171.86832296,0.00024989,2]
[337037383,1725367840201,-181.38126904,0.00024989,2]
[337037384,1725367840212,-642.0261556,0.00024989,2]
[337037385,1725367840222,-500.0,0.00024989,2]
[337037386,1725367840234,-500.0,0.00024989,2]
[337037387,1725367840245,-500.0,0.00024989,2]
[337037388,1725367840254,-500.0,0.00024989,2]
[337037389,1725367840264,-500.0,0.00024989,2]
[337037390,1725367840273,-500.0,0.00024989,2]
[337037391,1725367840282,-300.0,0.00024989,2]
[337037392,1725367840291,-155.110836,0.0002499,7]
[337037393,1725367840300,-285266.75283827,0.0002499,3]
[337037442,1725367842859,-48216.71267743,0.0002499,3]
[337037444,1725367842872,-25766.72187771,0.0002499,3]
[337037490,1725368680919,1416.9982616,0.00019805,2]
[337037492,1725368726811,633.553773,0.00019785,2]
[337037493,1725368743975,30133.1611852,0.00019785,2]
[337037494,1725368800114,3000.0,0.00019785,2]
[337037495,1725368814885,165.317325,0.00018796,2]
[337037496,1725368815432,165.317325,0.00019785,2]
[337037498,1725369001734,251.0,0.00019858,2]
[337037523,1725369031936,-250.0,0.00020287,2]
[337037525,1725369031948,-250.0,0.00020378,2]
[337037526,1725369031959,-250.0,0.00020434,2]
[337037527,1725369031968,-250.0,0.0002049,2]
[337037528,1725369031978,-250.0,0.00020546,2]
[337037529,1725369031987,-250.0,0.00020602,2]
[337037530,1725369031996,-250.0,0.00020658,2]
[337037531,1725369032007,-250.0,0.00020714,2]
[337037532,1725369032018,-250.0,0.00020769,2]
[337037533,1725369032028,-165.317325,0.00020774,2]
[337037534,1725369032038,-250.0,0.00020825,2]
[337037535,1725369032047,-250.0,0.00020881,2]
[337037536,1725369032059,-250.0,0.00020937,2]
[337037537,1725369032069,-300.0,0.00020962,2]
[337037538,1725369032078,-300.0,0.00020962,2]
[337037539,1725369032087,-8539.80439109,0.00020963,2]
[337037540,1725369032099,-305.84891193,0.00020963,2]
[337037541,1725369032113,-11639.27013199,0.00020963,2]
[337037573,1725369038199,-942.36090731,0.00020963,2]
[337037574,1725369038212,-3472.71565768,0.00020963,2]
[337037575,1725369038221,-250.0,0.00020993,2]
[337037576,1725369038231,-250.0,0.00021049,2]
[337037577,1725369038240,-250.0,0.00021105,2]
[337037578,1725369038249,-250.0,0.00021161,2]
[337037579,1725369038259,-250.0,0.00021217,2]
[337037580,1725369038269,-250.0,0.00021272,2]
[337037581,1725369038278,-250.0,0.00021328,2]
[337037582,1725369038289,-250.0,0.00021384,2]
[337037583,1725369038299,-250.0,0.0002144,2]
[337037584,1725369038310,-177.295795,0.00022096,2]
[337037585,1725369038323,-2058.51,0.00022368,3]
[337037586,1725369038332,-1029.25,0.00022368,3]
[337037587,1725369038430,-514.63,0.00022368,3]
[337037588,1725369038440,-257.31,0.00022368,3]
[337037589,1725369038450,-771.96,0.00022368,3]
[337037590,1725369038459,-500.0,0.00022376,2]
[337037591,1725369038468,-607.50789148,0.00022376,2]
[337037592,1725369038479,-500.0,0.00022376,2]
[337037593,1725369038490,-500.0,0.00022376,2]
[337037594,1725369038500,-391.68674905,0.00022376,2]
[337037595,1725369038509,-500.0,0.00022376,2]
[337037596,1725369038519,-500.0,0.00022376,2]
[337037597,1725369038528,-500.0,0.00022376,2]
[337037598,1725369038538,-500.0,0.00022376,2]
[337037599,1725369038548,-500.0,0.00022376,2]
[337037600,1725369038559,-500.0,0.00022376,2]
[337037601,1725369038568,-500.0,0.00022376,2]
[337037602,1725369038577,-500.0,0.00022376,2]
[337037603,1725369038588,-500.0,0.00022376,2]
[337037604,1725369038597,-500.0,0.00022376,2]
[337037605,1725369038606,-500.0,0.00022376,2]
[337037606,1725369038616,-500.0,0.00022376,2]
[337037607,1725369038626,-500.0,0.00022376,2]
[337037608,1725369038636,-500.0,0.00022376,2]
[337037609,1725369038646,-500.0,0.00022376,2]
[337037610,1725369038655,-500.0,0.00022376,2]
[337037611,1725369038665,-500.0,0.00022376,2]
[337037612,1725369038674,-500.0,0.00022376,2]
[337037613,1725369038684,-500.0,0.00022376,2]
[337037614,1725369038694,-500.0,0.00022376,2]
[337037615,1725369038703,-500.0,0.00022376,2]
[337037616,1725369038713,-500.0,0.00022376,2]
[337037617,1725369038722,-500.0,0.00022376,2]
[337037618,1725369038732,-500.0,0.00022376,2]
[337037619,1725369038742,-500.0,0.00022376,2]
[337037620,1725369038753,-500.0,0.00022376,2]
[337037621,1725369038764,-500.0,0.00022376,2]
[337037622,1725369038774,-500.0,0.00022376,2]
[337037623,1725369038784,-500.0,0.00022376,2]
[337037624,1725369038793,-425.2717866,0.00022376,2]
[337037625,1725369038802,-500.0,0.00022376,2]
[337037626,1725369038812,-500.0,0.00022376,2]
[337037627,1725369038823,-500.0,0.00022376,2]
[337037628,1725369038833,-500.0,0.00022376,2]
[337037629,1725369038844,-500.0,0.00022376,2]
[337037630,1725369038854,-500.0,0.00022376,2]
[337037631,1725369038864,-500.0,0.00022376,2]
[337037632,1725369038873,-500.0,0.00022376,2]
[337037633,1725369038884,-500.0,0.00022376,2]
[337037634,1725369038894,-500.0,0.00022376,2]
[337037635,1725369038907,-500.0,0.00022376,2]
[337037636,1725369038918,-12934.18597823,0.00022376,2]
[337037637,1725369038928,-12934.18597821,0.00022377,2]
[337037638,1725369038939,-12934.18597821,0.00022377,2]
[337037639,1725369038948,-12934.18597821,0.00022378,2]
[337037640,1725369038958,-12934.18597821,0.00022378,2]
[337037641,1725369038968,-500.54207518,0.00022473,2]
[337037642,1725369038978,-197.0,0.00022473,2]
[337037643,1725369038989,-151.0,0.00022476,7]
[337037644,1725369038998,-174.582929,0.00022476,7]
[337037645,1725369039008,-151.0,0.00022476,7]
[337037646,1725369039017,-290.26984279,0.00022476,2]
[337037647,1725369039028,-500.0,0.00022476,2]
[337037648,1725369039037,-500.0,0.00022476,2]
[337037649,1725369039047,-500.0,0.00022476,2]
[337037650,1725369039057,-500.0,0.00022476,2]
[337037651,1725369039066,-500.0,0.00022476,2]
[337037652,1725369039076,-500.0,0.00022476,2]
[337037653,1725369039085,-510.38236839,0.00022476,2]
[337037654,1725369039098,-500.0,0.00022476,2]
[337037655,1725369039108,-198.80967198,0.00022476,2]
[337037656,1725369039118,-500.0,0.00022476,2]
[337037657,1725369039127,-500.0,0.00022476,2]
[337037658,1725369039138,-500.0,0.00022476,2]
[337037659,1725369039148,-500.0,0.00022476,2]
[337037660,1725369039159,-500.0,0.00022476,2]
[337037661,1725369039169,-500.0,0.00022476,2]
[337037662,1725369039179,-500.0,0.00022476,2]
[337037663,1725369039188,-500.0,0.00022476,2]
[337037664,1725369039199,-500.0,0.00022476,2]
[337037665,1725369039209,-324.17191959,0.00022476,2]
[337037666,1725369039219,-500.0,0.00022476,2]
[337037667,1725369039229,-172.56283641,0.00022476,2]
[337037668,1725369039241,-300.0,0.00022476,2]
[337037669,1725369039251,-500.0,0.00022476,2]
[337037670,1725369039261,-500.0,0.00022476,2]
[337037671,1725369039270,-500.0,0.00022476,2]
[337037672,1725369039280,-500.0,0.00022476,2]
[337037673,1725369039289,-500.0,0.00022476,2]
[337037674,1725369039298,-340.73256469,0.00022476,2]
[337037675,1725369039310,-500.0,0.00022476,2]
[337037676,1725369039329,-500.0,0.00022476,2]
[337037677,1725369039343,-407576.57152,0.00022477,3]
[337037678,1725369039354,-151.0,0.00022478,7]
[337037679,1725369039365,-4023.37966,0.00022478,2]
[337037680,1725369039376,-151.0,0.00022478,7]
[337037681,1725369039386,-600.77,0.000225,14]
[337037682,1725369039397,-262.12,0.000225,14]
[337037683,1725369039407,-181.182763,0.0002269,7]
[337037684,1725369039418,-153.500725,0.0002269,7]
[337037685,1725369039428,-151.0,0.0002269,7]
[337037686,1725369039438,-151.0,0.0002269,7]
[337037687,1725369039448,-151.0,0.0002269,7]
[337037688,1725369039458,-2266.4506,0.0002269,7]
[337037689,1725369039468,-2266.4506,0.0002269,7]
[337037690,1725369039479,-5229.63451332,0.00022719,2]
[337037691,1725369039492,-5229.63451332,0.00022772,2]
[337037692,1725369039502,-420.0,0.00022803,2]
[337037693,1725369039512,-168.16605167,0.00022973,2]
[337037694,1725369039523,-500.93088685,0.00022973,2]